[Event "*** SCC Grand Prix: Titled Tuesday Blitz"]
[Site "Chess.com"]
[Date "2020.07.07"]
[Round "5"]
[White "Ze-Pequeno"]
[Black "boasovietica"]
[Result "0-1"]
[WhiteElo "2239"]
[BlackElo "2461"]
[TimeControl "180+1"]
[EndTime "10:56:19 PDT"]
[Termination "boasovietica won by resignation"]

1. e4 {[%clk 0:02:58.1]} 1... e5 {[%clk 0:02:59.1]} 2. Nf3 {[%clk 0:02:57.8]}
2... Nc6 {[%clk 0:02:59.4]} 3. Bb5 {[%clk 0:02:57.4]} 3... a6 {[%clk 0:02:59.1]}
4. Ba4 {[%clk 0:02:56.9]} 4... Nf6 {[%clk 0:02:58.8]} 5. O-O {[%clk 0:02:56.5]}
5... Be7 {[%clk 0:02:59.1]} 6. Re1 {[%clk 0:02:56.3]} 6... b5 {[%clk 0:02:58.8]}
7. Bb3 {[%clk 0:02:55.8]} 7... d6 {[%clk 0:02:57.4]} 8. c3 {[%clk 0:02:55.3]}
8... O-O {[%clk 0:02:56.9]} 9. h3 {[%clk 0:02:55.6]} 9... Bb7 {[%clk 0:02:55.9]}
10. d4 {[%clk 0:02:53.9]} 10... Nd7 {[%clk 0:02:54.6]} 11. Nbd2 {[%clk
0:02:46.1]} 11... exd4 {[%clk 0:02:53.3]} 12. cxd4 {[%clk 0:02:45.9]} 12... Bf6
{[%clk 0:02:53.6]} 13. Nf1 {[%clk 0:02:43]} 13... Na5 {[%clk 0:02:53.5]} 14. Bc2
{[%clk 0:02:42]} 14... Re8 {[%clk 0:02:52.8]} 15. Ng3 {[%clk 0:02:37.5]} 15...
g6 {[%clk 0:02:52.7]} 16. b3 {[%clk 0:02:30]} 16... c5 {[%clk 0:02:50.2]} 17.
Bb2 {[%clk 0:02:26.4]} 17... Nc6 {[%clk 0:02:49.3]} 18. Rc1 {[%clk 0:02:22.5]}
18... Rc8 {[%clk 0:02:45.3]} 19. Ba1 {[%clk 0:02:01.3]} 19... cxd4 {[%clk
0:02:16.5]} 20. Nxd4 {[%clk 0:01:59.4]} 20... Nc5 {[%clk 0:02:06.3]} 21. Nxc6
{[%clk 0:01:32.6]} 21... Bxc6 {[%clk 0:02:07.2]} 22. b4 {[%clk 0:01:32.8]} 22...
Ne6 {[%clk 0:01:20.1]} 23. Bb3 {[%clk 0:01:23]} 23... Bxa1 {[%clk 0:01:08.5]}
24. Rxa1 {[%clk 0:01:20.3]} 24... Nf4 {[%clk 0:00:56]} 25. Qd2 {[%clk
0:00:51.3]} 25... Qf6 {[%clk 0:00:49.2]} 26. Rad1 {[%clk 0:00:50.4]} 26... Rcd8
{[%clk 0:00:46]} 27. Kh2 {[%clk 0:00:39]} 27... h5 {[%clk 0:00:44.3]} 28. f3
{[%clk 0:00:36.4]} 28... h4 {[%clk 0:00:36.5]} 29. Nf1 {[%clk 0:00:27.4]} 29...
Qe5 {[%clk 0:00:23.9]} 30. Kg1 {[%clk 0:00:27.3]} 30... Bb7 {[%clk 0:00:21.3]}
31. Ne3 {[%clk 0:00:26.7]} 31... Qg5 {[%clk 0:00:18.7]} 32. Ng4 {[%clk
0:00:21.2]} 32... Kh7 {[%clk 0:00:18.5]} 33. Kh2 {[%clk 0:00:21]} 33... f5
{[%clk 0:00:17.6]} 34. exf5 {[%clk 0:00:20.2]} 34... gxf5 {[%clk 0:00:17.9]} 35.
Ne3 {[%clk 0:00:17.8]} 35... d5 {[%clk 0:00:15.1]} 36. Bc2 {[%clk 0:00:16.3]}
36... Bc8 {[%clk 0:00:14.3]} 37. Nf1 {[%clk 0:00:14.3]} 37... Rg8 {[%clk
0:00:13.5]} 38. Ne3 {[%clk 0:00:14]} 38... Rg7 {[%clk 0:00:12.5]} 39. Rg1 {[%clk
0:00:13.1]} 39... Rdg8 {[%clk 0:00:12.8]} 40. Rde1 {[%clk 0:00:12.6]} 40... Qg3+
{[%clk 0:00:13.1]} 41. Kh1 {[%clk 0:00:12.5]} 41... Nxh3 {[%clk 0:00:13.2]} 42.
Nf1 {[%clk 0:00:11.2]} 42... Nf2+ {[%clk 0:00:12.7]} 43. Qxf2 {[%clk 0:00:11.3]}
43... Qxf2 {[%clk 0:00:13.6]} 44. Re7 {[%clk 0:00:11.3]} 44... Rxe7 {[%clk
0:00:13.4]} 0-1

[Event "*** SCC Grand Prix: Titled Tuesday Blitz"]
[Site "Chess.com"]
[Date "2020.07.07"]
[Round "5"]
[White "Rap_woyska"]
[Black "Aygehovit1992"]
[Result "0-1"]
[WhiteElo "2434"]
[BlackElo "2632"]
[TimeControl "180+1"]
[EndTime "10:56:23 PDT"]
[Termination "Aygehovit1992 won by resignation"]

1. c4 {[%clk 0:03:00.9]} 1... g6 {[%clk 0:02:58.8]} 2. Nf3 {[%clk 0:03:00.8]}
2... Bg7 {[%clk 0:02:58.1]} 3. Nc3 {[%clk 0:03:01.7]} 3... c5 {[%clk 0:02:57.9]}
4. e3 {[%clk 0:03:01.5]} 4... Nf6 {[%clk 0:02:56.9]} 5. d4 {[%clk 0:03:02]} 5...
cxd4 {[%clk 0:02:57]} 6. exd4 {[%clk 0:03:02.9]} 6... O-O {[%clk 0:02:57.3]} 7.
d5 {[%clk 0:03:02.9]} 7... d6 {[%clk 0:02:55.7]} 8. Bd3 {[%clk 0:03:03]} 8...
Bg4 {[%clk 0:02:56.2]} 9. h3 {[%clk 0:03:03.3]} 9... Bxf3 {[%clk 0:02:55.4]} 10.
Qxf3 {[%clk 0:03:04.2]} 10... Nbd7 {[%clk 0:02:56.3]} 11. Qe2 {[%clk 0:03:01.4]}
11... Rc8 {[%clk 0:02:55.8]} 12. O-O {[%clk 0:02:50.4]} 12... Ne5 {[%clk
0:02:55.3]} 13. Bd2 {[%clk 0:02:41.5]} 13... Nfd7 {[%clk 0:02:54.3]} 14. b3
{[%clk 0:02:39.9]} 14... Nxd3 {[%clk 0:02:42.2]} 15. Qxd3 {[%clk 0:02:40.8]}
15... a6 {[%clk 0:02:43]} 16. Rae1 {[%clk 0:02:34.5]} 16... Re8 {[%clk
0:02:24.3]} 17. f4 {[%clk 0:02:34.2]} 17... Qc7 {[%clk 0:02:01.1]} 18. f5 {[%clk
0:02:13]} 18... b5 {[%clk 0:01:36.7]} 19. fxg6 {[%clk 0:02:09.8]} 19... hxg6
{[%clk 0:01:35.6]} 20. Qf3 {[%clk 0:02:05.6]} 20... Bf6 {[%clk 0:01:20]} 21. Ne4
{[%clk 0:01:12.2]} 21... bxc4 {[%clk 0:01:18.1]} 22. Rc1 {[%clk 0:01:10.6]}
22... Qb6+ {[%clk 0:00:46.1]} 23. Be3 {[%clk 0:01:07.4]} 23... Qb5 {[%clk
0:00:46.2]} 24. Bg5 {[%clk 0:00:41.3]} 24... cxb3 {[%clk 0:00:27.7]} 25. Rxc8
{[%clk 0:00:42.2]} 25... Rxc8 {[%clk 0:00:27.3]} 26. Bxf6 {[%clk 0:00:36.2]}
26... Nxf6 {[%clk 0:00:26.3]} 27. Nxf6+ {[%clk 0:00:36.5]} 27... exf6 {[%clk
0:00:26.2]} 28. Qxf6 {[%clk 0:00:37.4]} 28... Qxd5 {[%clk 0:00:25.3]} 29. axb3
{[%clk 0:00:36.8]} 29... Qxb3 {[%clk 0:00:17.3]} 30. Qxd6 {[%clk 0:00:36.8]}
30... a5 {[%clk 0:00:17.7]} 31. Rf3 {[%clk 0:00:31.4]} 31... Qb1+ {[%clk
0:00:14.4]} 32. Kh2 {[%clk 0:00:31.5]} 32... Qb8 {[%clk 0:00:14.2]} 33. Qxb8
{[%clk 0:00:17.2]} 33... Rxb8 {[%clk 0:00:15.1]} 34. Kg3 {[%clk 0:00:17.2]}
34... Ra8 {[%clk 0:00:14.9]} 35. Kf4 {[%clk 0:00:16.2]} 35... a4 {[%clk
0:00:15.1]} 36. Ra3 {[%clk 0:00:16.9]} 36... Kg7 {[%clk 0:00:15.6]} 37. Ke5
{[%clk 0:00:15.4]} 37... f5 {[%clk 0:00:14.8]} 38. g4 {[%clk 0:00:13.2]} 38...
fxg4 {[%clk 0:00:13.3]} 39. hxg4 {[%clk 0:00:14.1]} 39... Kh6 {[%clk 0:00:13.7]}
40. Kd6 {[%clk 0:00:05]} 40... Kg5 {[%clk 0:00:13]} 41. Kc7 {[%clk 0:00:05.1]}
41... Kxg4 {[%clk 0:00:13.3]} 42. Kb7 {[%clk 0:00:06]} 42... Ra5 {[%clk
0:00:12.7]} 43. Kb6 {[%clk 0:00:06.5]} 43... Rf5 {[%clk 0:00:12.6]} 44. Rxa4+
{[%clk 0:00:06.8]} 44... Kh3 {[%clk 0:00:12.6]} 45. Kc6 {[%clk 0:00:05.3]} 45...
g5 {[%clk 0:00:13]} 46. Kd6 {[%clk 0:00:04.7]} 46... g4 {[%clk 0:00:13.5]} 47.
Ke6 {[%clk 0:00:05.3]} 47... Rh5 {[%clk 0:00:13.7]} 48. Ra1 {[%clk 0:00:01.6]}
48... g3 {[%clk 0:00:13.4]} 0-1

[Event "*** SCC Grand Prix: Titled Tuesday Blitz"]
[Site "Chess.com"]
[Date "2020.07.07"]
[Round "5"]
[White "FrenchMonster2002"]
[Black "Supernotar"]
[Result "1-0"]
[WhiteElo "2460"]
[BlackElo "2789"]
[TimeControl "180+1"]
[EndTime "10:56:24 PDT"]
[Termination "FrenchMonster2002 won by checkmate"]

1. e4 {[%clk 0:03:00.9]} 1... c6 {[%clk 0:02:59.4]} 2. d4 {[%clk 0:03:00.1]}
2... d5 {[%clk 0:02:59.2]} 3. e5 {[%clk 0:03:00.9]} 3... Bf5 {[%clk 0:02:58.7]}
4. h4 {[%clk 0:03:00.6]} 4... h5 {[%clk 0:02:58.4]} 5. Bg5 {[%clk 0:03:01.2]}
5... f6 {[%clk 0:02:57.2]} 6. Bf4 {[%clk 0:02:59.7]} 6... fxe5 {[%clk
0:02:56.1]} 7. Bxe5 {[%clk 0:02:56.9]} 7... Nd7 {[%clk 0:02:55.5]} 8. Bg3 {[%clk
0:02:50.7]} 8... e6 {[%clk 0:02:43.9]} 9. Bd3 {[%clk 0:02:48.8]} 9... Nh6 {[%clk
0:02:37.6]} 10. Nf3 {[%clk 0:02:48]} 10... Be7 {[%clk 0:02:28.5]} 11. Nc3 {[%clk
0:02:37.9]} 11... Bf6 {[%clk 0:02:17.9]} 12. Qe2 {[%clk 0:02:34.7]} 12... Qe7
{[%clk 0:02:15.6]} 13. O-O-O {[%clk 0:02:34.4]} 13... Bxd3 {[%clk 0:02:09.8]}
14. Rxd3 {[%clk 0:02:26.7]} 14... Nf5 {[%clk 0:02:07.2]} 15. Re1 {[%clk
0:02:23.6]} 15... Nxg3 {[%clk 0:01:59.3]} 16. fxg3 {[%clk 0:02:24.5]} 16... Kf7
{[%clk 0:01:39.5]} 17. Re3 {[%clk 0:02:17.9]} 17... Rae8 {[%clk 0:01:38.7]} 18.
Nd1 {[%clk 0:02:12.4]} 18... Qd6 {[%clk 0:01:29.7]} 19. Nf2 {[%clk 0:02:00.8]}
19... c5 {[%clk 0:01:26.8]} 20. Ne5+ {[%clk 0:01:48.8]} 20... Bxe5 {[%clk
0:01:21.4]} 21. dxe5 {[%clk 0:01:49.7]} 21... Qc7 {[%clk 0:01:05]} 22. Nh3
{[%clk 0:01:47.8]} 22... Ke7 {[%clk 0:00:59.4]} 23. Nf4 {[%clk 0:01:41.2]} 23...
Kd8 {[%clk 0:00:52]} 24. Nxh5 {[%clk 0:01:38.5]} 24... Re7 {[%clk 0:00:46.3]}
25. Nf4 {[%clk 0:01:36.8]} 25... Rh6 {[%clk 0:00:38.9]} 26. h5 {[%clk
0:01:29.2]} 26... d4 {[%clk 0:00:35.5]} 27. Re4 {[%clk 0:01:26.6]} 27... Nb6
{[%clk 0:00:20.5]} 28. g4 {[%clk 0:01:22.9]} 28... Nd5 {[%clk 0:00:17.6]} 29. g5
{[%clk 0:01:19]} 29... Nxf4 {[%clk 0:00:15.6]} 30. Rxf4 {[%clk 0:01:19.9]} 30...
Rh8 {[%clk 0:00:15]} 31. Qf3 {[%clk 0:01:14.1]} 31... Qc6 {[%clk 0:00:09.9]} 32.
Qxc6 {[%clk 0:00:54.3]} 32... bxc6 {[%clk 0:00:10]} 33. g4 {[%clk 0:00:55.2]}
33... Ke8 {[%clk 0:00:08.3]} 34. Ref1 {[%clk 0:00:53.2]} 34... a6 {[%clk
0:00:06.7]} 35. a4 {[%clk 0:00:48.7]} 35... Kd7 {[%clk 0:00:06.9]} 36. b3 {[%clk
0:00:48.1]} 36... Rg8 {[%clk 0:00:04.4]} 37. g6 {[%clk 0:00:42.1]} 37... Rh8
{[%clk 0:00:04]} 38. Rf7 {[%clk 0:00:41.2]} 38... Re8 {[%clk 0:00:03.7]} 39.
Rxe7+ {[%clk 0:00:38.5]} 39... Rxe7 {[%clk 0:00:04.1]} 40. Rf8 {[%clk
0:00:36.7]} 40... Re8 {[%clk 0:00:03.6]} 41. Rxe8 {[%clk 0:00:29.4]} 41... Kxe8
{[%clk 0:00:04.5]} 42. g5 {[%clk 0:00:24.7]} 42... a5 {[%clk 0:00:04.1]} 43. h6
{[%clk 0:00:22.8]} 43... gxh6 {[%clk 0:00:04.1]} 44. gxh6 {[%clk 0:00:23]} 44...
Kf8 {[%clk 0:00:05]} 45. Kd2 {[%clk 0:00:22.5]} 45... Kg8 {[%clk 0:00:03]} 46.
Kd3 {[%clk 0:00:22.7]} 46... c4+ {[%clk 0:00:01.8]} 47. Kxc4 {[%clk 0:00:22.9]}
47... c5 {[%clk 0:00:02.3]} 48. Kxc5 {[%clk 0:00:23]} 48... d3 {[%clk
0:00:02.6]} 49. cxd3 {[%clk 0:00:23.9]} 49... Kh8 {[%clk 0:00:02.5]} 50. Kd6
{[%clk 0:00:24.2]} 50... Kg8 {[%clk 0:00:03.4]} 51. Ke7 {[%clk 0:00:24.4]} 51...
Kh8 {[%clk 0:00:04.3]} 52. g7+ {[%clk 0:00:23.2]} 52... Kg8 {[%clk 0:00:05.2]}
53. Kf6 {[%clk 0:00:22]} 53... Kh7 {[%clk 0:00:06.1]} 54. Kf7 {[%clk 0:00:21.9]}
54... Kxh6 {[%clk 0:00:07]} 55. g8=Q {[%clk 0:00:21.1]} 55... Kh5 {[%clk
0:00:07.9]} 56. Kf6 {[%clk 0:00:21]} 56... Kh6 {[%clk 0:00:08.8]} 57. Qg6#
{[%clk 0:00:20.9]} 1-0

[Event "*** SCC Grand Prix: Titled Tuesday Blitz"]
[Site "Chess.com"]
[Date "2020.07.07"]
[Round "5"]
[White "Tactictic"]
[Black "j2806"]
[Result "1-0"]
[WhiteElo "2286"]
[BlackElo "2050"]
[TimeControl "180+1"]
[EndTime "10:56:24 PDT"]
[Termination "Tactictic won by checkmate"]

1. e4 {[%clk 0:03:00.9]} 1... c5 {[%clk 0:02:59.6]} 2. Nf3 {[%clk 0:02:50.3]}
2... d6 {[%clk 0:02:59.3]} 3. d4 {[%clk 0:02:49.4]} 3... cxd4 {[%clk 0:02:54.3]}
4. Nxd4 {[%clk 0:02:50.3]} 4... Nf6 {[%clk 0:02:53.5]} 5. Nc3 {[%clk 0:02:49.2]}
5... a6 {[%clk 0:02:53.5]} 6. Be3 {[%clk 0:02:46.6]} 6... e5 {[%clk 0:02:52.9]}
7. Nf3 {[%clk 0:02:46.2]} 7... Be6 {[%clk 0:02:53]} 8. Ng5 {[%clk 0:02:44.2]}
8... Nc6 {[%clk 0:02:28.9]} 9. Nxe6 {[%clk 0:02:41.1]} 9... fxe6 {[%clk
0:02:28.6]} 10. Bc4 {[%clk 0:02:41]} 10... Qd7 {[%clk 0:02:17.7]} 11. O-O {[%clk
0:02:32]} 11... Be7 {[%clk 0:02:17.3]} 12. Bg5 {[%clk 0:02:26.2]} 12... O-O
{[%clk 0:02:13.8]} 13. Qf3 {[%clk 0:02:14.7]} 13... b5 {[%clk 0:02:09.6]} 14.
Bb3 {[%clk 0:02:13.9]} 14... Nd4 {[%clk 0:02:09.6]} 15. Qd3 {[%clk 0:02:11.4]}
15... h6 {[%clk 0:01:55.2]} 16. Be3 {[%clk 0:02:05.3]} 16... Nxb3 {[%clk
0:01:45.5]} 17. axb3 {[%clk 0:02:04.6]} 17... d5 {[%clk 0:01:40.6]} 18. exd5
{[%clk 0:01:42.8]} 18... exd5 {[%clk 0:01:35.8]} 19. Rfd1 {[%clk 0:01:42.2]}
19... Rfd8 {[%clk 0:01:32.4]} 20. Qg6 {[%clk 0:01:23.8]} 20... Kh8 {[%clk
0:01:12.8]} 21. Bxh6 {[%clk 0:01:10.5]} 21... gxh6 {[%clk 0:01:06.4]} 22. Qxh6+
{[%clk 0:01:11.4]} 22... Nh7 {[%clk 0:00:59.6]} 23. Nxd5 {[%clk 0:01:00.2]}
23... Bg5 {[%clk 0:00:49]} 24. Qh5 {[%clk 0:00:59]} 24... Qb7 {[%clk 0:00:34]}
25. h4 {[%clk 0:00:44.5]} 25... Rxd5 {[%clk 0:00:19.7]} 26. hxg5 {[%clk
0:00:41.4]} 26... Rxd1+ {[%clk 0:00:18.2]} 27. Rxd1 {[%clk 0:00:39.2]} 27... Rg8
{[%clk 0:00:14.5]} 28. g6 {[%clk 0:00:37.2]} 28... Rg7 {[%clk 0:00:13.5]} 29.
Rd8+ {[%clk 0:00:35.1]} 29... Rg8 {[%clk 0:00:13.7]} 30. Rxg8+ {[%clk 0:00:31]}
30... Kxg8 {[%clk 0:00:12.8]} 31. Qxh7+ {[%clk 0:00:31.3]} 31... Qxh7 {[%clk
0:00:12.5]} 32. gxh7+ {[%clk 0:00:32.2]} 32... Kxh7 {[%clk 0:00:13.1]} 33. Kf1
{[%clk 0:00:32.8]} 33... Kg6 {[%clk 0:00:13.4]} 34. Ke2 {[%clk 0:00:33.7]} 34...
Kf5 {[%clk 0:00:13.7]} 35. Ke3 {[%clk 0:00:34.6]} 35... e4 {[%clk 0:00:13.1]}
36. f3 {[%clk 0:00:35.2]} 36... exf3 {[%clk 0:00:13]} 37. gxf3 {[%clk
0:00:36.1]} 37... Ke5 {[%clk 0:00:12.7]} 38. f4+ {[%clk 0:00:37]} 38... Kf5
{[%clk 0:00:13.2]} 39. Kf3 {[%clk 0:00:37.9]} 39... a5 {[%clk 0:00:13.2]} 40.
Kg3 {[%clk 0:00:37.7]} 40... Ke4 {[%clk 0:00:12.6]} 41. Kg4 {[%clk 0:00:38.2]}
41... Ke3 {[%clk 0:00:12.7]} 42. f5 {[%clk 0:00:38.7]} 42... Kd2 {[%clk
0:00:13.1]} 43. f6 {[%clk 0:00:39.6]} 43... Kxc2 {[%clk 0:00:13.5]} 44. f7
{[%clk 0:00:40.5]} 44... Kxb2 {[%clk 0:00:14]} 45. f8=Q {[%clk 0:00:40.3]} 45...
Kxb3 {[%clk 0:00:14.6]} 46. Qf3+ {[%clk 0:00:39]} 46... Kb4 {[%clk 0:00:11.7]}
47. Qe4+ {[%clk 0:00:39]} 47... Ka3 {[%clk 0:00:11.5]} 48. Qd3+ {[%clk
0:00:38.1]} 48... Ka4 {[%clk 0:00:11.3]} 49. Qc3 {[%clk 0:00:35.1]} 49... b4
{[%clk 0:00:10.5]} 50. Qc2+ {[%clk 0:00:30.9]} 50... b3 {[%clk 0:00:08]} 51.
Qc4+ {[%clk 0:00:30.9]} 51... Ka3 {[%clk 0:00:07.7]} 52. Qb5 {[%clk 0:00:29.2]}
52... a4 {[%clk 0:00:06]} 53. Kf3 {[%clk 0:00:29.8]} 53... b2 {[%clk 0:00:05.2]}
54. Qd3+ {[%clk 0:00:26]} 54... Ka2 {[%clk 0:00:04.9]} 55. Qc2 {[%clk
0:00:26.1]} 55... a3 {[%clk 0:00:04.5]} 56. Ke2 {[%clk 0:00:20.8]} 56... Ka1
{[%clk 0:00:04.1]} 57. Qc3 {[%clk 0:00:21.3]} 57... a2 {[%clk 0:00:03.4]} 58.
Qd4 {[%clk 0:00:19.6]} 58... Kb1 {[%clk 0:00:03.2]} 59. Qd1# {[%clk 0:00:20.5]}
1-0

[Event "*** SCC Grand Prix: Titled Tuesday Blitz"]
[Site "Chess.com"]
[Date "2020.07.07"]
[Round "5"]
[White "SharapovEvgeny"]
[Black "Msb2"]
[Result "1/2-1/2"]
[WhiteElo "2441"]
[BlackElo "2854"]
[TimeControl "180+1"]
[EndTime "10:56:26 PDT"]
[Termination "Game drawn - insufficient material"]

1. e4 {[%clk 0:02:59.3]} 1... e6 {[%clk 0:02:59.8]} 2. d4 {[%clk 0:02:58.5]}
2... d5 {[%clk 0:02:55]} 3. exd5 {[%clk 0:02:57.7]} 3... exd5 {[%clk 0:02:55.9]}
4. Nf3 {[%clk 0:02:57.6]} 4... Nc6 {[%clk 0:02:55.2]} 5. Bd3 {[%clk 0:02:56.3]}
5... Bd6 {[%clk 0:02:54.8]} 6. O-O {[%clk 0:02:55.3]} 6... Nge7 {[%clk
0:02:55.3]} 7. c3 {[%clk 0:02:54.8]} 7... Bg4 {[%clk 0:02:55.4]} 8. h3 {[%clk
0:02:54.5]} 8... Bh5 {[%clk 0:02:55.4]} 9. Bg5 {[%clk 0:02:50]} 9... f6 {[%clk
0:02:53.4]} 10. Bh4 {[%clk 0:02:49.5]} 10... Qd7 {[%clk 0:02:53.1]} 11. Nbd2
{[%clk 0:02:48.6]} 11... O-O-O {[%clk 0:02:48]} 12. Bg3 {[%clk 0:02:45]} 12...
g5 {[%clk 0:02:45]} 13. Bxd6 {[%clk 0:02:41.8]} 13... Qxd6 {[%clk 0:02:45.7]}
14. Qc2 {[%clk 0:02:39.8]} 14... Bg6 {[%clk 0:02:43.8]} 15. Rfe1 {[%clk
0:02:37.3]} 15... Rde8 {[%clk 0:02:44.1]} 16. Re2 {[%clk 0:02:36.4]} 16... Bxd3
{[%clk 0:01:49.4]} 17. Qxd3 {[%clk 0:02:35.6]} 17... Ng6 {[%clk 0:01:50.3]} 18.
Qf5+ {[%clk 0:02:33]} 18... Kd8 {[%clk 0:01:50.5]} 19. Rae1 {[%clk 0:02:27.8]}
19... Rxe2 {[%clk 0:01:50.2]} 20. Rxe2 {[%clk 0:02:27.1]} 20... Re8 {[%clk
0:01:50.9]} 21. Rxe8+ {[%clk 0:02:24.4]} 21... Kxe8 {[%clk 0:01:51.8]} 22. g3
{[%clk 0:02:20.6]} 22... Nce7 {[%clk 0:01:51.1]} 23. Qd3 {[%clk 0:02:15.7]}
23... c6 {[%clk 0:01:51.1]} 24. Kg2 {[%clk 0:02:13.5]} 24... Qe6 {[%clk
0:01:49.5]} 25. Nf1 {[%clk 0:02:11.7]} 25... Nf5 {[%clk 0:01:48.8]} 26. Ne3
{[%clk 0:02:09.5]} 26... Nxe3+ {[%clk 0:01:39.8]} 27. Qxe3 {[%clk 0:02:09.1]}
27... Qxe3 {[%clk 0:01:39.8]} 28. fxe3 {[%clk 0:02:09.3]} 28... h6 {[%clk
0:01:37.7]} 29. Kf2 {[%clk 0:02:06]} 29... Ke7 {[%clk 0:01:36.9]} 30. Ke2 {[%clk
0:02:06.1]} 30... f5 {[%clk 0:01:36.2]} 31. Kd3 {[%clk 0:02:03]} 31... Kf6
{[%clk 0:01:35.6]} 32. Nd2 {[%clk 0:01:56.8]} 32... h5 {[%clk 0:01:34.1]} 33. c4
{[%clk 0:01:55.1]} 33... h4 {[%clk 0:01:32.2]} 34. gxh4 {[%clk 0:01:49.7]} 34...
Nxh4 {[%clk 0:01:33.1]} 35. cxd5 {[%clk 0:01:48.1]} 35... cxd5 {[%clk 0:01:34]}
36. Ke2 {[%clk 0:01:46.2]} 36... g4 {[%clk 0:01:27.8]} 37. hxg4 {[%clk
0:01:44.8]} 37... fxg4 {[%clk 0:01:28.7]} 38. e4 {[%clk 0:01:44.7]} 38... Ke6
{[%clk 0:01:14.1]} 39. Ke3 {[%clk 0:01:44.1]} 39... g3 {[%clk 0:00:48.7]} 40.
Ke2 {[%clk 0:01:28.3]} 40... b6 {[%clk 0:00:44.3]} 41. Ke3 {[%clk 0:01:27.4]}
41... dxe4 {[%clk 0:00:41.7]} 42. Nxe4 {[%clk 0:01:26.7]} 42... Nf5+ {[%clk
0:00:41.7]} 43. Kf3 {[%clk 0:01:22.9]} 43... Kd5 {[%clk 0:00:41.6]} 44. Nc3+
{[%clk 0:01:19.2]} 44... Kc4 {[%clk 0:00:28.4]} 45. d5 {[%clk 0:01:19]} 45...
Kc5 {[%clk 0:00:28.9]} 46. d6 {[%clk 0:01:19.2]} 46... Nxd6 {[%clk 0:00:18.8]}
47. Kxg3 {[%clk 0:01:18.8]} 47... Kd4 {[%clk 0:00:19.7]} 48. Kf4 {[%clk
0:01:15.5]} 48... a6 {[%clk 0:00:18.5]} 49. Na4 {[%clk 0:01:06.6]} 49... b5
{[%clk 0:00:18.6]} 50. Nb6 {[%clk 0:01:06.3]} 50... b4 {[%clk 0:00:12.9]} 51. b3
{[%clk 0:01:02.4]} 51... a5 {[%clk 0:00:13.3]} 52. Kg5 {[%clk 0:00:46.2]} 52...
Ne4+ {[%clk 0:00:13.3]} 53. Kf5 {[%clk 0:00:43.4]} 53... Nc3 {[%clk 0:00:14.2]}
54. Ke6 {[%clk 0:00:30.5]} 54... Nxa2 {[%clk 0:00:13.2]} 55. Kd6 {[%clk
0:00:30.6]} 55... Nc1 {[%clk 0:00:13.6]} 56. Kc6 {[%clk 0:00:28.2]} 56... Nxb3
{[%clk 0:00:13.9]} 57. Kb5 {[%clk 0:00:28.4]} 57... Kc3 {[%clk 0:00:09.7]} 58.
Nd5+ {[%clk 0:00:27.6]} 58... Kb2 {[%clk 0:00:07.4]} 59. Nxb4 {[%clk 0:00:27.4]}
59... axb4 {[%clk 0:00:05]} 60. Kxb4 {[%clk 0:00:27.3]} 1/2-1/2

[Event "*** SCC Grand Prix: Titled Tuesday Blitz"]
[Site "Chess.com"]
[Date "2020.07.07"]
[Round "5"]
[White "rynos0411"]
[Black "deribas12345"]
[Result "1-0"]
[WhiteElo "2442"]
[BlackElo "2583"]
[TimeControl "180+1"]
[EndTime "10:56:27 PDT"]
[Termination "rynos0411 won by checkmate"]

1. e4 {[%clk 0:03:00.9]} 1... c5 {[%clk 0:02:58.3]} 2. Nf3 {[%clk 0:03:00.7]}
2... d6 {[%clk 0:02:58.4]} 3. d4 {[%clk 0:02:58.5]} 3... cxd4 {[%clk 0:02:59]}
4. Nxd4 {[%clk 0:02:59.4]} 4... Nf6 {[%clk 0:02:59.2]} 5. Nc3 {[%clk 0:02:58.4]}
5... a6 {[%clk 0:02:58.4]} 6. h3 {[%clk 0:02:58.3]} 6... e5 {[%clk 0:02:58.1]}
7. Nde2 {[%clk 0:02:58.6]} 7... Be7 {[%clk 0:02:58.7]} 8. g4 {[%clk 0:02:58.6]}
8... b5 {[%clk 0:02:52.5]} 9. Bg2 {[%clk 0:02:58.1]} 9... b4 {[%clk 0:02:50.9]}
10. Nd5 {[%clk 0:02:57.9]} 10... Nxd5 {[%clk 0:02:51.4]} 11. exd5 {[%clk
0:02:58.3]} 11... a5 {[%clk 0:02:48.4]} 12. O-O {[%clk 0:02:57.5]} 12... Ba6
{[%clk 0:02:47]} 13. Re1 {[%clk 0:02:57]} 13... Nd7 {[%clk 0:02:46.4]} 14. Be3
{[%clk 0:02:43.1]} 14... h5 {[%clk 0:02:41.8]} 15. f4 {[%clk 0:02:37.2]} 15...
hxg4 {[%clk 0:02:40.3]} 16. hxg4 {[%clk 0:02:36.7]} 16... Bh4 {[%clk 0:02:05.5]}
17. Rf1 {[%clk 0:02:31.4]} 17... Bxe2 {[%clk 0:01:57]} 18. Qxe2 {[%clk
0:02:30.3]} 18... Bg3 {[%clk 0:01:57.5]} 19. g5 {[%clk 0:02:23.5]} 19... Bh2+
{[%clk 0:01:53.7]} 20. Kf2 {[%clk 0:02:23.5]} 20... exf4 {[%clk 0:01:23.6]} 21.
Bxf4+ {[%clk 0:02:07.7]} 21... Ne5 {[%clk 0:01:23.1]} 22. Rh1 {[%clk 0:02:02]}
22... Qb6+ {[%clk 0:01:13.4]} 23. Kf1 {[%clk 0:01:49.8]} 23... Qd4 {[%clk
0:01:06.4]} 24. Bxh2 {[%clk 0:01:40.7]} 24... Rxh2 {[%clk 0:00:43.7]} 25. Rxh2
{[%clk 0:01:40.1]} 25... Kd7 {[%clk 0:00:41.5]} 26. c3 {[%clk 0:01:02.8]} 26...
Qf4+ {[%clk 0:00:39.3]} 27. Kg1 {[%clk 0:01:02.2]} 27... Qxg5 {[%clk 0:00:39.9]}
28. cxb4 {[%clk 0:00:57.7]} 28... Qf4 {[%clk 0:00:19.1]} 29. Kh1 {[%clk
0:00:48.5]} 29... axb4 {[%clk 0:00:12.7]} 30. Rf1 {[%clk 0:00:46.6]} 30... Qd4
{[%clk 0:00:10]} 31. Qb5+ {[%clk 0:00:41]} 31... Kd8 {[%clk 0:00:04.7]} 32. Rh8+
{[%clk 0:00:39.5]} 32... Ke7 {[%clk 0:00:05]} 33. Rxa8 {[%clk 0:00:32.3]} 33...
Qh4+ {[%clk 0:00:04]} 34. Kg1 {[%clk 0:00:32.8]} 34... Qd4+ {[%clk 0:00:04.3]}
35. Rf2 {[%clk 0:00:33.2]} 35... Qd1+ {[%clk 0:00:03.1]} 36. Qf1 {[%clk
0:00:33.2]} 36... Qd4 {[%clk 0:00:03.3]} 37. Ra7+ {[%clk 0:00:30]} 37... Qxa7
{[%clk 0:00:03.2]} 38. Qe2 {[%clk 0:00:23.1]} 38... Qd4 {[%clk 0:00:02.7]} 39.
Qd2 {[%clk 0:00:19.9]} 39... Qh4 {[%clk 0:00:01]} 40. a3 {[%clk 0:00:15.2]}
40... g5 {[%clk 0:00:01.4]} 41. axb4 {[%clk 0:00:14.2]} 41... Qg3 {[%clk
0:00:02]} 42. b5 {[%clk 0:00:13.2]} 42... Ng4 {[%clk 0:00:02.6]} 43. b6 {[%clk
0:00:12.6]} 43... Nxf2 {[%clk 0:00:01.3]} 44. Qxf2 {[%clk 0:00:11.4]} 44... Qg4
{[%clk 0:00:02]} 45. b7 {[%clk 0:00:08.6]} 45... Qd1+ {[%clk 0:00:02.1]} 46. Bf1
{[%clk 0:00:07.9]} 46... Qb3 {[%clk 0:00:03]} 47. Qa7 {[%clk 0:00:05]} 47...
Qe3+ {[%clk 0:00:01.1]} 48. Qxe3+ {[%clk 0:00:03.5]} 48... Kf8 {[%clk
0:00:01.4]} 49. b8=Q+ {[%clk 0:00:04.4]} 49... Kg7 {[%clk 0:00:02.3]} 50. Qxd6
{[%clk 0:00:04.3]} 50... g4 {[%clk 0:00:03.2]} 51. Qg5+ {[%clk 0:00:03.4]} 51...
Kh7 {[%clk 0:00:03.6]} 52. Qdh6# {[%clk 0:00:03.8]} 1-0